[Event "EYCC 2017"]
[Site "Mamaia"]
[Date "2017.09.09"]
[Round "5"]
[White "Toncheva, Nadya"]
[Black "Karavitaki, Evaggelia"]
[Result "1-0"]
[ECO "E45"]
[WhiteElo "1802"]
[BlackElo "1703"]
[Annotator "NA"]
[PlyCount "107"]
[EventDate "2017.??.??"]
[EventType "swiss"]
[EventCountry "ROU"]
[SourceTitle "playchess.com"]
[Source "ChessBase"]
[SourceQuality "1"]
[TimeControl "40/5400+30:1800+30"]

1. d4 {[%emt 0:00:00]} Nf6 {[%emt 0:00:08]} 2. c4 {[%emt 0:00:00]} e6 {[%emt 0:00:07]} 3. Nc3 {[%emt 0:00:00]} Bb4 {[%emt 0:00:10]} 4. e3 {[%emt 0:00:00]} b6 {[%emt 0:00:21]} 5. Nge2 {[%emt 0:00:00]} Ba6 {[%emt 0:00:56]} 6. Ng3 {[%emt 0:00:29]} O-O {[%emt 0:03:19]} 7. Qf3 {[%emt 0:01:42]} Nc6 {[%emt 0:02:35]} 8. a3 {[%emt 0:04:12]} Bxc3+ {[%emt 0:02:13]} 9. bxc3 {[%emt 0:00:06]} Na5 {[%emt 0:02:09]} 10. e4 {[%emt 0:04:35]} Bxc4 {[%emt 0:13:47]} 11. Bxc4 {[%emt 0:00:48]} Nxc4 {[%emt 0:00:10]} 12. Bg5 {[%emt 0:00:02]} h6 {[%emt 0:01:18]} 13. h4 {[%emt 0:00:03]} Re8 {[%emt 0:21:16]} 14. Bxf6 {[%emt 0:10:52]} Qxf6 {[%emt 0:00:43]} 15. Qxf6 {[%emt 0:00:02]} gxf6 {[%emt 0:00:11]} 16. Nh5 {[%emt 0:00:01]} Red8 {[%emt 0:01:52]} 17. Nxf6+ {[%emt 0:04:17]} Kg7 {[%emt 0:00:48]} 18. Nh5+ {[%emt 0:09:04]} Kf8 {[%emt 0:01:58]} 19. g4 {[%emt 0:14:13]} Ke7 {[%emt 0:03:03]} 20. f4 {[%emt 0:06:38]} Ne3 {[%emt 0:05:44]} 21. Ke2 {[%emt 0:14:21]} Nxg4 {[%emt 0:01:14]} 22. Rag1 {[%emt 0:00:31]} Nf6 {[%emt 0:02:32]} 23. Nxf6 {[%emt 0:01:00]} Kxf6 {[%emt 0:00:07]} 24. e5+ {[%emt 0:00:25]} Kf5 {[%emt 0:06:09]} 25. Rg7 {[%emt 0:01:58]} Rg8 {[%emt 0:07:36]} 26. Rhg1 {[%emt 0:09:20]} Rxg7 {[%emt 0:01:39]} 27. Rxg7 {[%emt 0:00:01]} Kxf4 {[%emt 0:07:48]} 28. Rxf7+ {[%emt 0:00:13]} Kg4 {[%emt 0:00:11]} 29. Rxd7 {[%emt 0:00:45]} c5 {[%emt 0:02:58]} 30. Re7 {[%emt 0:01:23]} cxd4 {[%emt 0:02:15]} 31. cxd4 {[%emt 0:00:01]} Kf5 {[%emt 0:03:06]} 32. Kf3 {[%emt 0:01:52]} Rd8 {[%emt 0:01:48]} 33. Rf7+ {[%emt 0:00:15]} Kg6 {[%emt 0:00:13]} 34. Rf6+ {[%emt 0:00:03]} Kh5 {[%emt 0:00:30]} 35. Ke4 {[%emt 0:01:09]} Re8 {[%emt 0:00:50]} 36. d5 {[%emt 0:07:52]} exd5+ {[%emt 0:00:06]} 37. Kxd5 {[%emt 0:00:04]} b5 {[%emt 0:05:56]} 38. e6 {[%emt 0:00:07]} Kxh4 {[%emt 0:01:01]} 39. Rxh6+ {[%emt 0:00:28]} Kg5 {[%emt 0:00:04]} 40. Rh7 {[%emt 0:00:00]} Kf6 {[%emt 0:01:04]} 41. Rf7+ {[%emt 0:01:37]} Kg6 {[%emt 0:00:41]} 42. Rxa7 {[%emt 0:00:26]} Rb8 {[%emt 0:10:08]} 43. Kd6 {[%emt 0:04:13]} b4 {[%emt 0:01:34]} 44. axb4 {[%emt 0:00:09]} Rxb4 {[%emt 0:00:28]} 45. Ra1 {[%emt 0:01:55]} Rd4+ {[%emt 0:12:22]} 46. Ke7 {[%emt 0:01:33]} Re4 {[%emt 0:00:55]} 47. Rg1+ {[%emt 0:04:08]} Kh7 {[%emt 0:00:34]} 48. Kf7 {[%emt 0:00:25]} Rf4+ {[%emt 0:00:33]} 49. Ke8 {[%emt 0:00:06]} Re4 {[%emt 0:02:13]} 50. e7 {[%emt 0:00:05]} Re2 {[%emt 0:00:46]} 51. Rg4 {[%emt 0:00:15]} Ra2 {[%emt 0:01:06]} 52. Re4 {[%emt 0:00:53]} Kg7 {[%emt 0:02:04]} 53. Kd7 {[%emt 0:00:14]} Ra7+ {[%emt 0:00:25]} 54. Kc6 {[%emt 0:00:14]} 1-0

[Event "EYCC 2017"]
[Site "Mamaia"]
[Date "2017.09.09"]
[Round "5"]
[White "Mkrtchyan, Mariam"]
[Black "Bulatova, Kamaliya"]
[Result "1/2-1/2"]
[ECO "A45"]
[WhiteElo "1794"]
[BlackElo "2014"]
[Annotator "NA"]
[PlyCount "134"]
[EventDate "2017.??.??"]
[EventType "swiss"]
[EventCountry "ROU"]
[SourceTitle "playchess.com"]
[Source "ChessBase"]
[SourceQuality "1"]
[TimeControl "40/5400+30:1800+30"]

1. d4 {[%emt 0:00:00]} Nf6 {[%emt 0:00:03]} 2. Bg5 {[%emt 0:00:00]} Ne4 {[%emt 0:00:34]} 3. Bf4 {[%emt 0:00:00]} c5 {[%emt 0:00:26]} 4. f3 {[%emt 0:00:16]} Qa5+ {[%emt 0:00:23]} 5. c3 {[%emt 0:00:13]} Nf6 {[%emt 0:00:13]} 6. d5 {[%emt 0:00:26]} Qb6 {[%emt 0:00:41]} 7. Bc1 {[%emt 0:00:21]} e6 {[%emt 0:00:22]} 8. e4 {[%emt 0:00:08]} exd5 {[%emt 0:00:36]} 9. exd5 {[%emt 0:00:00]} Bd6 {[%emt 0:00:23]} 10. c4 {[%emt 0:00:47]} O-O {[%emt 0:01:47]} 11. Bd3 {[%emt 0:00:25]} Re8+ {[%emt 0:07:53]} 12. Ne2 {[%emt 0:00:26]} Bf8 {[%emt 0:01:50]} 13. Nbc3 {[%emt 0:00:43]} d6 {[%emt 0:02:43]} 14. O-O {[%emt 0:03:11]} Nbd7 {[%emt 0:02:09]} 15. f4 {[%emt 0:03:59]} Qd8 {[%emt 0:05:49]} 16. h3 {[%emt 0:02:19]} a6 {[%emt 0:05:51]} 17. a4 {[%emt 0:00:58]} b6 {[%emt 0:01:45]} 18. Qc2 {[%emt 0:03:07]} Rb8 {[%emt 0:07:34]} 19. g4 {[%emt 0:05:42]} g6 {[%emt 0:06:39]} 20. Ng3 {[%emt 0:02:04]} Nxg4 {[%emt 0:17:38]} 21. hxg4 {[%emt 0:00:51]} Qh4 {[%emt 0:00:04]} 22. Qh2 {[%emt 0:05:43]} Qf6 {[%emt 0:01:11]} 23. Nge2 {[%emt 0:13:24]} Qg7 {[%emt 0:04:02]} 24. g5 {[%emt 0:05:05]} f6 {[%emt 0:02:36]} 25. Ne4 {[%emt 0:01:26]} Be7 {[%emt 0:02:33]} 26. Bd2 {[%emt 0:03:48]} b5 {[%emt 0:03:28]} 27. axb5 {[%emt 0:01:38]} axb5 {[%emt 0:00:04]} 28. b3 {[%emt 0:13:58]} b4 {[%emt 0:01:16]} 29. Ra7 {[%emt 0:01:50]} f5 {[%emt 0:04:13]} 30. N4g3 {[%emt 0:01:31]} Qb2 {[%emt 0:02:05]} 31. Nc1 {[%emt 0:03:01]} Bb7 {[%emt 0:01:33]} 32. Re1 {[%emt 0:07:44]} Nf8 {[%emt 0:03:10]} 33. Ra2 {[%emt 0:00:32]} Qd4+ {[%emt 0:00:36]} 34. Kh1 {[%emt 0:02:08]} Bc8 {[%emt 0:01:53]} 35. Be3 {[%emt 0:03:00]} Qg7 {[%emt 0:00:08]} 36. Rae2 {[%emt 0:02:14]} Qf7 {[%emt 0:01:31]} 37. Bd2 {[%emt 0:01:10]} Bd7 {[%emt 0:01:10]} 38. Bb1 {[%emt 0:02:16]} Ra8 {[%emt 0:02:17]} 39. Nd3 {[%emt 0:03:00]} Ra7 {[%emt 0:03:09]} 40. Bc1 {[%emt 0:00:00]} Bd8 {[%emt 0:00:47]} 41. Bb2 {[%emt 0:02:52]} Rxe2 {[%emt 0:01:42]} 42. Qxe2 {[%emt 0:00:10]} Ra8 {[%emt 0:04:29]} 43. Bc2 {[%emt 0:12:00]} Bc7 {[%emt 0:03:11]} 44. Qd2 {[%emt 0:03:12]} Re8 {[%emt 0:03:56]} 45. Rf1 {[%emt 0:05:02]} Qe7 {[%emt 0:01:16]} 46. Rf3 {[%emt 0:00:05]} Ra8 {[%emt 0:03:19]} 47. Qc1 {[%emt 0:02:10]} h6 {[%emt 0:06:13]} 48. gxh6 {[%emt 0:01:34]} Qh4+ {[%emt 0:00:04]} 49. Kg2 {[%emt 0:00:11]} Qxh6 {[%emt 0:00:26]} 50. Rf1 {[%emt 0:00:55]} Nh7 {[%emt 0:01:25]} 51. Ba1 {[%emt 0:01:45]} Bd8 {[%emt 0:00:23]} 52. Rh1 {[%emt 0:03:40]} Qf8 {[%emt 0:00:28]} 53. Qg1 {[%emt 0:01:05]} Ra2 {[%emt 0:00:32]} 54. Qb1 {[%emt 0:00:05]} Ra8 {[%emt 0:00:09]} 55. Nf2 {[%emt 0:02:34]} Ra7 {[%emt 0:03:32]} 56. Nh3 {[%emt 0:00:51]} Bf6 {[%emt 0:02:27]} 57. Bb2 {[%emt 0:00:17]} Qg7 {[%emt 0:01:07]} 58. Bxf6 {[%emt 0:01:50]} Qxf6 {[%emt 0:00:10]} 59. Re1 {[%emt 0:00:54]} Kf7 {[%emt 0:00:54]} 60. Kf3 {[%emt 0:01:42]} Ra3 {[%emt 0:02:29]} 61. Kg2 {[%emt 0:01:04]} Ra8 {[%emt 0:01:06]} 62. Nf1 {[%emt 0:00:41]} Qc3 {[%emt 0:02:26]} 63. Nh2 {[%emt 0:02:40]} Qd2+ {[%emt 0:01:58]} 64. Kh1 {[%emt 0:00:46]} Qc3 {[%emt 0:00:38]} 65. Kg2 {[%emt 0:00:20]} Qd2+ {[%emt 0:00:05]} 66. Kh1 {[%emt 0:01:30]} Qc3 {[%emt 0:00:05]} 67. Kg2 {[%emt 0:01:04]} Qd2+ {[%emt 0:00:09]} 1/2-1/2

[Event "EYCC 2017"]
[Site "Mamaia"]
[Date "2017.09.09"]
[Round "5"]
[White "Samunenkov, Igor"]
[Black "Verma, Shlok"]
[Result "1/2-1/2"]
[ECO "A40"]
[WhiteElo "1794"]
[BlackElo "1658"]
[Annotator "NA"]
[PlyCount "92"]
[EventDate "2017.??.??"]
[EventType "swiss"]
[EventCountry "ROU"]
[SourceTitle "playchess.com"]
[Source "ChessBase"]
[SourceQuality "1"]
[TimeControl "40/5400+30:1800+30"]

1. d4 e6 2. Bf4 g5 3. Bg3 Nc6 4. e3 d6 5. c4 h5 6. f3 Bg7 7. Nc3 Nge7 8. Bd3 f5 9. Nge2 Bd7 10. Bf2 e5 11. d5 Nb4 12. Bb1 Na6 13. h4 Ng6 14. hxg5 Qxg5 15. Qd2 Nc5 16. f4 Qf6 17. Bc2 h4 18. e4 exf4 19. Bd4 Ne5 20. Nxf4 Qg5 21. Bxe5 Bxe5 22. Ne6 Qxd2+ 23. Kxd2 Nxe6 24. dxe6 Bxe6 25. Nd5 Bxd5 26. exd5 Rg8 27. Rxh4 Rxg2+ 28. Kd3 O-O-O 29. Rf1 f4 30. Rh3 Rdg8 31. b4 R2g3+ 32. Rf3 Kd8 33. Ke2 Ke8 34. Be4 Rg2+ 35. Rf2 Rxf2+ 36. Kxf2 Rg3 37. Rxg3 fxg3+ 38. Kf3 Kf7 39. b5 Kf6 40. Bd3 Kg5 41. Be4 Kh4 42. Bf5 g2 43. Kxg2 Kg5 44. Bc8 b6 45. Kf3 Kf6 46. Ke4 Kg5 1/2-1/2

[Event "EYCC 2017"]
[Site "Mamaia"]
[Date "2017.09.09"]
[Round "5"]
[White "Zvereva, Margarita"]
[Black "Zavivaeva, Emilia"]
[Result "1-0"]
[ECO "E16"]
[WhiteElo "1790"]
[BlackElo "1582"]
[Annotator "NA"]
[PlyCount "125"]
[EventDate "2017.??.??"]
[EventType "swiss"]
[EventCountry "ROU"]
[SourceTitle "playchess.com"]
[Source "ChessBase"]
[SourceQuality "1"]
[TimeControl "40/5400+30:1800+30"]

1. d4 {[%emt 0:00:00]} Nf6 {[%emt 0:00:36]} 2. c4 {[%emt 0:00:00]} e6 {[%emt 0:00:08]} 3. Nf3 {[%emt 0:00:00]} Bb4+ {[%emt 0:00:11]} 4. Bd2 {[%emt 0:00:16]} Qe7 {[%emt 0:00:54]} 5. a3 {[%emt 0:05:45]} Bxd2+ {[%emt 0:00:42]} 6. Qxd2 {[%emt 0:00:29]} b6 {[%emt 0:01:26]} 7. g3 {[%emt 0:01:51]} Bb7 {[%emt 0:00:13]} 8. Bg2 {[%emt 0:00:11]} d6 {[%emt 0:01:12]} 9. Nc3 {[%emt 0:02:56]} Nbd7 {[%emt 0:00:28]} 10. O-O {[%emt 0:01:24]} O-O {[%emt 0:02:59]} 11. Qc2 {[%emt 0:03:09]} c5 {[%emt 0:01:21]} 12. Rfd1 {[%emt 0:07:03]} Rac8 {[%emt 0:07:18]} 13. d5 {[%emt 0:08:03]} e5 {[%emt 0:01:53]} 14. Nd2 {[%emt 0:05:33]} a6 {[%emt 0:14:19]} 15. Qa4 {[%emt 0:07:19]} Ne8 {[%emt 0:16:20]} 16. b4 {[%emt 0:02:45]} f5 {[%emt 0:01:18]} 17. bxc5 {[%emt 0:02:08]} Rxc5 {[%emt 0:06:09]} 18. Qb4 {[%emt 0:02:51]} Rc8 {[%emt 0:08:28]} 19. Na4 {[%emt 0:05:19]} Rb8 {[%emt 0:09:41]} 20. Rab1 {[%emt 0:03:46]} Bc8 {[%emt 0:01:36]} 21. Qc3 {[%emt 0:09:12]} b5 {[%emt 0:03:31]} 22. cxb5 {[%emt 0:12:31]} axb5 {[%emt 0:00:08]} 23. Nb2 {[%emt 0:09:03]} Nc5 {[%emt 0:01:09]} 24. Nb3 {[%emt 0:02:33]} Nxb3 {[%emt 0:03:21]} 25. Qxb3 {[%emt 0:00:03]} Nf6 {[%emt 0:00:40]} 26. Nd3 {[%emt 0:02:01]} Kh8 {[%emt 0:03:29]} 27. Nb4 {[%emt 0:02:10]} Bb7 {[%emt 0:00:59]} 28. Qd3 {[%emt 0:01:24]} Qd7 {[%emt 0:09:11]} 29. Nc6 {[%emt 0:01:19]} Ra8 {[%emt 0:00:37]} 30. Qxb5 {[%emt 0:00:59]} Ba6 {[%emt 0:00:10]} 31. Qb2 {[%emt 0:00:55]} e4 {[%emt 0:00:21]} 32. Qd2 {[%emt 0:02:16]} Bc4 {[%emt 0:00:14]} 33. Nb4 {[%emt 0:00:40]} Rfc8 {[%emt 0:02:44]} 34. Ra1 {[%emt 0:00:24]} Qb5 {[%emt 0:00:23]} 35. Bf1 {[%emt 0:00:32]} Bb3 {[%emt 0:00:51]} 36. e3 {[%emt 0:00:28]} Qa5 {[%emt 0:00:34]} 37. Rdc1 {[%emt 0:00:34]} Nxd5 {[%emt 0:00:43]} 38. Rcb1 {[%emt 0:00:23]} Nxb4 {[%emt 0:02:37]} 39. Rxb3 {[%emt 0:00:22]} Nc2 {[%emt 0:00:08]} 40. Qxa5 {[%emt 0:00:00]} Rxa5 {[%emt 0:00:01]} 41. Rc1 {[%emt 0:15:11]} h6 {[%emt 0:00:54]} 42. Rb2 {[%emt 0:05:13]} Rac5 {[%emt 0:00:22]} 43. a4 {[%emt 0:07:04]} Na3 {[%emt 0:01:23]} 44. Rxc5 {[%emt 0:01:08]} dxc5 {[%emt 0:00:40]} 45. Ra2 {[%emt 0:02:01]} Nb1 {[%emt 0:01:33]} 46. Bc4 {[%emt 0:00:49]} g6 {[%emt 0:03:15]} 47. a5 {[%emt 0:00:33]} Nc3 {[%emt 0:04:35]} 48. Ra3 {[%emt 0:00:51]} Nb1 {[%emt 0:00:13]} 49. Ra1 {[%emt 0:01:04]} Nd2 {[%emt 0:00:11]} 50. Bd5 {[%emt 0:00:30]} Rc7 {[%emt 0:01:44]} 51. a6 {[%emt 0:01:00]} Ra7 {[%emt 0:00:25]} 52. Bb7 {[%emt 0:00:39]} c4 {[%emt 0:03:33]} 53. Rc1 {[%emt 0:00:39]} Kg7 {[%emt 0:00:27]} 54. Kg2 {[%emt 0:00:35]} h5 {[%emt 0:02:05]} 55. Rc2 {[%emt 0:00:22]} Nb3 {[%emt 0:00:38]} 56. Rxc4 {[%emt 0:00:18]} Na5 {[%emt 0:00:31]} 57. Rc5 {[%emt 0:00:55]} Nxb7 {[%emt 0:00:17]} 58. Rc7+ {[%emt 0:00:06]} Kh6 {[%emt 0:01:33]} 59. axb7 {[%emt 0:00:04]} Rxb7 {[%emt 0:00:27]} 60. Rxb7 {[%emt 0:00:06]} h4 {[%emt 0:00:06]} 61. gxh4 {[%emt 0:00:16]} Kh5 {[%emt 0:00:05]} 62. Rh7+ {[%emt 0:00:19]} Kg4 {[%emt 0:00:08]} 63. h3# {[%emt 0:00:06]} 1-0

[Event "EYCC 2017"]
[Site "Mamaia"]
[Date "2017.09.09"]
[Round "5"]
[White "Sosnina, Ekaterina"]
[Black "Hajiyeva, Laman"]
[Result "0-1"]
[ECO "C03"]
[WhiteElo "1775"]
[BlackElo "1818"]
[Annotator "NA"]
[PlyCount "110"]
[EventDate "2017.??.??"]
[EventType "swiss"]
[EventCountry "ROU"]
[SourceTitle "playchess.com"]
[Source "ChessBase"]
[SourceQuality "1"]
[TimeControl "40/5400+30:1800+30"]

1. e4 {[%emt 0:00:00]} e6 {[%emt 0:00:07]} 2. d4 {[%emt 0:00:00]} d5 {[%emt 0:00:07]} 3. Nd2 {[%emt 0:00:00]} a6 {[%emt 0:00:02]} 4. Ngf3 {[%emt 0:03:27]} c5 {[%emt 0:00:06]} 5. c3 {[%emt 0:00:23]} Nc6 {[%emt 0:01:54]} 6. Bd3 {[%emt 0:00:45]} Nf6 {[%emt 0:01:49]} 7. O-O {[%emt 0:00:26]} c4 {[%emt 0:02:54]} 8. Bc2 {[%emt 0:00:39]} Be7 {[%emt 0:00:48]} 9. h3 {[%emt 0:20:40]} O-O {[%emt 0:02:06]} 10. e5 {[%emt 0:00:06]} Nd7 {[%emt 0:00:40]} 11. Nh2 {[%emt 0:00:38]} f6 {[%emt 0:06:41]} 12. exf6 {[%emt 0:05:51]} Nxf6 {[%emt 0:02:04]} 13. Ndf3 {[%emt 0:11:48]} Qe8 {[%emt 0:16:42]} 14. Ne5 {[%emt 0:06:43]} Bd6 {[%emt 0:09:31]} 15. f4 {[%emt 0:02:41]} g6 {[%emt 0:08:35]} 16. Qe1 {[%emt 0:19:02]} Ne7 {[%emt 0:03:25]} 17. Nhf3 {[%emt 0:08:11]} b5 {[%emt 0:08:54]} 18. Ng5 {[%emt 0:04:28]} h6 {[%emt 0:02:33]} 19. Ngf3 {[%emt 0:00:51]} Kg7 {[%emt 0:08:56]} 20. Nh4 {[%emt 0:03:13]} Bxe5 {[%emt 0:00:30]} 21. fxe5 {[%emt 0:02:07]} Nh5 {[%emt 0:00:53]} 22. g4 {[%emt 0:00:23]} Rxf1+ {[%emt 0:03:36]} 23. Qxf1 {[%emt 0:00:35]} Ng3 {[%emt 0:00:18]} 24. Qf6+ {[%emt 0:06:17]} Kh7 {[%emt 0:00:05]} 25. Be3 {[%emt 0:00:37]} Bd7 {[%emt 0:03:47]} 26. Kg2 {[%emt 0:01:03]} Ne4 {[%emt 0:00:52]} 27. Bxe4 {[%emt 0:00:05]} dxe4 {[%emt 0:00:03]} 28. Rf1 {[%emt 0:00:03]} Nd5 {[%emt 0:03:12]} 29. Qf7+ {[%emt 0:02:01]} Qxf7 {[%emt 0:00:07]} 30. Rxf7+ {[%emt 0:00:04]} Kg8 {[%emt 0:00:05]} 31. Rxd7 {[%emt 0:00:05]} Nxe3+ {[%emt 0:00:06]} 32. Kf2 {[%emt 0:00:06]} Nd1+ {[%emt 0:01:31]} 33. Ke2 {[%emt 0:00:04]} Nxb2 {[%emt 0:00:07]} 34. Nxg6 {[%emt 0:02:10]} Na4 {[%emt 0:02:24]} 35. Kd2 {[%emt 0:00:56]} e3+ {[%emt 0:01:07]} 36. Kxe3 {[%emt 0:00:05]} Nxc3 {[%emt 0:00:02]} 37. h4 {[%emt 0:00:07]} Nd5+ {[%emt 0:01:25]} 38. Kd2 {[%emt 0:00:12]} b4 {[%emt 0:01:22]} 39. g5 {[%emt 0:00:16]} hxg5 {[%emt 0:00:06]} 40. h5 {[%emt 0:00:00]} c3+ {[%emt 0:04:03]} 41. Kc1 {[%emt 0:03:57]} Nf4 {[%emt 0:00:53]} 42. h6 {[%emt 0:12:51]} Nxg6 {[%emt 0:01:08]} 43. Rg7+ {[%emt 0:00:04]} Kh8 {[%emt 0:00:26]} 44. Rxg6 {[%emt 0:00:05]} Rf8 {[%emt 0:04:20]} 45. Rxe6 {[%emt 0:06:19]} Rf1+ {[%emt 0:03:57]} 46. Kc2 {[%emt 0:00:06]} Rf2+ {[%emt 0:00:03]} 47. Kb1 {[%emt 0:00:05]} Rb2+ {[%emt 0:02:02]} 48. Ka1 {[%emt 0:00:05]} a5 {[%emt 0:01:06]} 49. Rg6 {[%emt 0:04:13]} a4 {[%emt 0:02:01]} 50. Rb6 {[%emt 0:09:34]} b3 {[%emt 0:00:59]} 51. axb3 {[%emt 0:00:09]} axb3 {[%emt 0:00:03]} 52. Ra6 {[%emt 0:00:18]} Rd2 {[%emt 0:00:26]} 53. Ra8+ {[%emt 0:00:58]} Kh7 {[%emt 0:00:06]} 54. Ra7+ {[%emt 0:00:10]} Kxh6 {[%emt 0:00:06]} 55. Ra6+ {[%emt 0:00:33]} Kh5 {[%emt 0:00:08]} 0-1

[Event "EYCC 2017"]
[Site "Mamaia"]
[Date "2017.09.09"]
[Round "5"]
[White "Vanduyfhuys, Daria"]
[Black "Katkov, Michelle"]
[Result "1-0"]
[ECO "E15"]
[WhiteElo "1775"]
[BlackElo "1845"]
[Annotator "NA"]
[PlyCount "119"]
[EventDate "2017.??.??"]
[EventType "swiss"]
[EventCountry "ROU"]
[SourceTitle "playchess.com"]
[Source "ChessBase"]
[SourceQuality "1"]
[TimeControl "40/5400+30:1800+30"]

1. d4 {[%emt 0:00:00]} Nf6 {[%emt 0:00:07]} 2. c4 {[%emt 0:00:00]} e6 {[%emt 0:00:05]} 3. Nf3 {[%emt 0:00:00]} b6 {[%emt 0:00:11]} 4. g3 {[%emt 0:00:47]} Bb4+ {[%emt 0:00:46]} 5. Bd2 {[%emt 0:00:11]} a5 {[%emt 0:00:10]} 6. Nc3 {[%emt 0:01:01]} Bxc3 {[%emt 0:01:21]} 7. Bxc3 {[%emt 0:00:36]} Ne4 {[%emt 0:00:15]} 8. Rc1 {[%emt 0:00:12]} O-O {[%emt 0:03:11]} 9. Bg2 {[%emt 0:00:26]} Nxc3 {[%emt 0:00:10]} 10. Rxc3 {[%emt 0:00:07]} Bb7 {[%emt 0:01:11]} 11. O-O {[%emt 0:01:28]} d6 {[%emt 0:01:44]} 12. Qc2 {[%emt 0:02:23]} Nc6 {[%emt 0:06:21]} 13. a3 {[%emt 0:03:47]} Qf6 {[%emt 0:08:14]} 14. Rd1 {[%emt 0:03:01]} Rab8 {[%emt 0:07:22]} 15. e4 {[%emt 0:09:09]} e5 {[%emt 0:02:10]} 16. d5 {[%emt 0:00:25]} Ne7 {[%emt 0:01:14]} 17. b4 {[%emt 0:02:12]} axb4 {[%emt 0:04:39]} 18. axb4 {[%emt 0:00:06]} Bc8 {[%emt 0:02:18]} 19. Ra1 {[%emt 0:01:44]} Bg4 {[%emt 0:01:17]} 20. Ra7 {[%emt 0:01:50]} Nc8 {[%emt 0:08:05]} 21. Ra1 {[%emt 0:01:56]} Ne7 {[%emt 0:00:11]} 22. Rca3 {[%emt 0:01:44]} c6 {[%emt 0:05:22]} 23. Nd2 {[%emt 0:05:08]} cxd5 {[%emt 0:04:28]} 24. exd5 {[%emt 0:00:10]} Nf5 {[%emt 0:00:52]} 25. Qe4 {[%emt 0:03:31]} Qg5 {[%emt 0:02:32]} 26. Nb3 {[%emt 0:02:54]} Ne7 {[%emt 0:03:12]} 27. Qe3 {[%emt 0:01:31]} Qxe3 {[%emt 0:01:22]} 28. fxe3 {[%emt 0:00:16]} Rfc8 {[%emt 0:01:38]} 29. Ra7 {[%emt 0:06:13]} Nf5 {[%emt 0:01:42]} 30. Re1 {[%emt 0:07:59]} Rxc4 {[%emt 0:06:54]} 31. h3 {[%emt 0:03:05]} Rxb4 {[%emt 0:00:36]} 32. hxg4 {[%emt 0:00:13]} Nxg3 {[%emt 0:00:28]} 33. Kh2 {[%emt 0:01:08]} Rxg4 {[%emt 0:01:00]} 34. Rea1 {[%emt 0:05:46]} Rb4 {[%emt 0:05:26]} 35. Kxg3 {[%emt 0:03:21]} Rxb3 {[%emt 0:00:06]} 36. Kf3 {[%emt 0:00:07]} Rb5 {[%emt 0:01:11]} 37. Ke4 {[%emt 0:01:32]} Rd8 {[%emt 0:01:01]} 38. Rf1 {[%emt 0:03:28]} f6 {[%emt 0:00:45]} 39. Bh3 {[%emt 0:00:24]} Ra5 {[%emt 0:02:53]} 40. Be6+ {[%emt 0:00:00]} Kh8 {[%emt 0:00:13]} 41. Rb7 {[%emt 0:01:43]} Ra4+ {[%emt 0:01:23]} 42. Kf3 {[%emt 0:00:40]} Rh4 {[%emt 0:04:07]} 43. Rb1 {[%emt 0:04:40]} g6 {[%emt 0:06:27]} 44. R1xb6 {[%emt 0:00:21]} f5 {[%emt 0:00:14]} 45. Rb8 {[%emt 0:06:30]} Rxb8 {[%emt 0:00:50]} 46. Rxb8+ {[%emt 0:00:09]} Kg7 {[%emt 0:00:08]} 47. Rb6 {[%emt 0:01:03]} e4+ {[%emt 0:05:38]} 48. Kg3 {[%emt 0:00:33]} Rg4+ {[%emt 0:00:06]} 49. Kf2 {[%emt 0:00:05]} h5 {[%emt 0:01:04]} 50. Rxd6 {[%emt 0:00:32]} h4 {[%emt 0:01:40]} 51. Rc6 {[%emt 0:00:28]} h3 {[%emt 0:01:19]} 52. Rc7+ {[%emt 0:02:57]} Kf6 {[%emt 0:00:26]} 53. Rh7 {[%emt 0:00:52]} Rg2+ {[%emt 0:00:05]} 54. Kf1 {[%emt 0:00:08]} Rg3 {[%emt 0:00:05]} 55. d6 {[%emt 0:02:29]} Rg2 {[%emt 0:11:22]} 56. Ke1 {[%emt 0:10:04]} Rb2 {[%emt 0:05:23]} 57. Bc8 {[%emt 0:02:21]} Rb3 {[%emt 0:00:38]} 58. Rxh3 {[%emt 0:01:37]} Rd3 {[%emt 0:00:55]} 59. d7 {[%emt 0:00:19]} g5 {[%emt 0:02:06]} 60. Rh8 {[%emt 0:02:00]} 1-0

[Event "EYCC 2017"]
[Site "Mamaia"]
[Date "2017.09.09"]
[Round "5"]
[White "Piliposyan, Robert"]
[Black "Makkar, Rajat"]
[Result "1/2-1/2"]
[ECO "B17"]
[WhiteElo "1773"]
[BlackElo "1880"]
[Annotator "NA"]
[PlyCount "117"]
[EventDate "2017.??.??"]
[EventType "swiss"]
[EventCountry "ROU"]
[SourceTitle "playchess.com"]
[Source "ChessBase"]
[SourceQuality "1"]
[TimeControl "40/5400+30:1800+30"]

1. e4 {[%emt 0:00:00]} c6 {[%emt 0:00:18]} 2. d4 {[%emt 0:00:00]} d5 {[%emt 0:00:10]} 3. Nd2 {[%emt 0:00:00]} dxe4 {[%emt 0:00:19]} 4. Nxe4 {[%emt 0:00:00]} Nd7 {[%emt 0:00:17]} 5. Ng5 {[%emt 0:00:03]} Ngf6 {[%emt 0:00:53]} 6. Bd3 {[%emt 0:00:22]} e6 {[%emt 0:00:45]} 7. N1f3 {[%emt 0:02:15]} Bd6 {[%emt 0:01:54]} 8. Qe2 {[%emt 0:00:25]} h6 {[%emt 0:00:29]} 9. Ne4 {[%emt 0:00:11]} Nxe4 {[%emt 0:00:20]} 10. Qxe4 {[%emt 0:00:08]} Nf6 {[%emt 0:00:14]} 11. Qe2 {[%emt 0:00:51]} b6 {[%emt 0:01:44]} 12. O-O {[%emt 0:00:30]} Bb7 {[%emt 0:01:21]} 13. c4 {[%emt 0:03:32]} O-O {[%emt 0:02:58]} 14. Bd2 {[%emt 0:01:50]} Qc7 {[%emt 0:02:03]} 15. h3 {[%emt 0:08:07]} c5 {[%emt 0:04:44]} 16. dxc5 {[%emt 0:02:47]} Bxc5 {[%emt 0:01:26]} 17. b4 {[%emt 0:07:50]} Bd6 {[%emt 0:03:18]} 18. Rac1 {[%emt 0:23:27]} Rac8 {[%emt 0:03:44]} 19. Bb1 {[%emt 0:12:15]} Rfd8 {[%emt 0:01:58]} 20. Rfd1 {[%emt 0:00:13]} e5 {[%emt 0:04:15]} 21. Bf5 {[%emt 0:06:47]} e4 {[%emt 0:02:36]} 22. Ne1 {[%emt 0:05:08]} Rb8 {[%emt 0:01:26]} 23. h4 {[%emt 0:00:30]} Qe7 {[%emt 0:06:36]} 24. g3 {[%emt 0:03:33]} Bxb4 25. Bf4 {[%emt 0:00:19]} Bd6 {[%emt 0:03:44]} 26. Ng2 {[%emt 0:04:09]} Bxf4 {[%emt 0:09:30]} 27. Nxf4 {[%emt 0:00:01]} Qc5 {[%emt 0:01:00]} 28. Nd5 {[%emt 0:00:50]} Nxd5 {[%emt 0:02:31]} 29. cxd5 {[%emt 0:00:07]} Qa5 {[%emt 0:00:30]} 30. Bxe4 {[%emt 0:04:09]} Bxd5 {[%emt 0:00:26]} 31. Bxd5 {[%emt 0:01:23]} Rxd5 {[%emt 0:00:08]} 32. Rxd5 {[%emt 0:00:45]} Qxd5 {[%emt 0:00:02]} 33. Rc7 {[%emt 0:00:10]} a5 {[%emt 0:00:56]} 34. Qc4 {[%emt 0:03:11]} Qf5 {[%emt 0:02:01]} 35. Qc2 {[%emt 0:00:21]} Qf3 {[%emt 0:00:41]} 36. Rc3 {[%emt 0:00:40]} Qd5 {[%emt 0:00:31]} 37. Rd3 {[%emt 0:00:33]} Qe5 {[%emt 0:01:53]} 38. Qc3 {[%emt 0:00:27]} Qe4 {[%emt 0:01:18]} 39. Qd4 {[%emt 0:03:25]} Qe1+ {[%emt 0:00:39]} 40. Kg2 {[%emt 0:00:00]} b5 {[%emt 0:02:20]} 41. Rd1 {[%emt 0:03:17]} Qe6 {[%emt 0:00:59]} 42. Qd5 {[%emt 0:00:23]} Qb6 {[%emt 0:03:38]} 43. Qd6 {[%emt 0:05:17]} Qb7+ {[%emt 0:00:19]} 44. Qd5 {[%emt 0:00:20]} Qe7 {[%emt 0:00:23]} 45. Qd6 {[%emt 0:06:18]} Qe4+ {[%emt 0:00:25]} 46. Kh2 {[%emt 0:01:32]} Re8 {[%emt 0:00:15]} 47. Qd5 {[%emt 0:01:19]} Qe2 {[%emt 0:01:10]} 48. Rd2 {[%emt 0:03:13]} Qf1 {[%emt 0:00:18]} 49. Qh1 {[%emt 0:00:19]} Qc4 {[%emt 0:01:51]} 50. Qd5 {[%emt 0:00:06]} Qxd5 {[%emt 0:02:28]} 51. Rxd5 {[%emt 0:00:07]} Re2 {[%emt 0:00:05]} 52. Kg2 {[%emt 0:00:13]} Rb2 {[%emt 0:00:29]} 53. a4 bxa4 {[%emt 0:00:07]} 54. Rxa5 {[%emt 0:00:26]} Ra2 {[%emt 0:00:07]} 55. Ra7 {[%emt 0:00:05]} Ra1 {[%emt 0:00:05]} 56. h5 {[%emt 0:00:10]} a3 {[%emt 0:00:34]} 57. Ra8+ {[%emt 0:00:11]} Kh7 {[%emt 0:00:22]} 58. Ra7 {[%emt 0:00:47]} f6 {[%emt 0:00:39]} 59. Ra8 {[%emt 0:00:15]} 1/2-1/2